bitfinex-derivatives/quotes_ETHF0:USTF0_20250220
["timestamp","ask_amount","ask_price","bid_price","bid_amount"]
[1740078630176,0.5908,2739.0,2738.8,0.5873]
[1740078630377,0.5908,2739.0,2738.7,3.94337915]
[1740078630577,0.73007,2738.9,2738.7,3.94337915]
[1740078630976,0.5908,2739.0,2738.7,3.94337915]
[1740078631177,0.73008,2738.9,2738.7,3.94337915]
[1740078631383,0.5908,2739.0,2738.7,3.21327915]
[1740078631574,0.73008,2738.8,2738.7,3.21327915]
[1740078636383,2.949,2738.9,2738.7,3.21327915]
[1740078636579,2.949,2738.9,2738.8,0.73008]
[1740078636780,2.949,2738.9,2738.8,1.87578]
[1740078636985,3.67905,2738.9,2738.8,42.67578]
[1740078637280,0.73008,2738.8,2738.7,3.94336915]
[1740078637484,2.949,2738.9,2738.7,3.21327915]
[1740078637685,2.949,2738.9,2738.8,0.73008]
[1740078637882,2.949,2738.9,2738.8,2.45948]
[1740078638084,0.00547915,2739.2,2739.1,0.73]
[1740078638383,0.5611,2739.5,2739.4,0.72992]
[1740078638686,3.2078,2739.8,2739.7,0.72984]
[1740078638880,3.93763,2739.8,2739.5,2.45929]
[1740078639082,3.2078,2739.8,2739.5,1.1457]
[1740078639287,3.93762,2739.8,2739.5,1.87558]
[1740078639581,3.2078,2739.8,2739.5,1.1457]
[1740078639889,0.00547915,2739.9,2739.8,0.72981]
[1740078640387,0.00547915,2739.9,2739.7,3.2078]
[1740078640687,0.73526915,2739.9,2739.7,3.2078]
[1740078641086,0.00547915,2739.9,2739.7,3.2078]
[1740078641288,0.73527915,2739.9,2739.7,3.2078]
[1740078642083,0.00547915,2739.9,2739.7,3.2078]
[1740078642385,0.00547915,2739.9,2739.4,3.2078]
[1740078642386,0.72989,2739.5,2739.4,3.2078]
[1740078644379,0.72989,2739.5,2739.2,2.431]
[1740078644380,0.72995,2739.3,2739.2,2.431]
[1740078644580,0.72995,2739.3,2739.1,3.2078]
[1740078644581,0.72997,2739.2,2739.1,3.2078]
[1740078644784,0.5793,2739.4,2739.1,3.2078]
[1740078644785,0.72997,2739.3,2739.1,3.2078]
[1740078645082,0.72997,2739.2,2739.1,3.2078]
[1740078645287,0.5793,2739.4,2739.1,3.2078]
[1740078645288,0.72997,2739.3,2739.1,3.2078]
[1740078645484,0.72997,2739.2,2739.1,3.2078]
[1740078645684,0.5793,2739.4,2739.1,3.2078]
[1740078645889,0.5793,2739.4,2739.2,0.72995]
[1740078646191,0.5793,2739.4,2739.1,3.2078]
[1740078646192,1.30924,2739.4,2739.1,3.93779]
[1740078646387,0.5793,2739.4,2739.1,3.93779]
[1740078646583,0.5889,2739.5,2739.3,0.72994]
[1740078646887,0.5889,2739.5,2739.1,3.7565]
[1740078647085,0.5889,2739.5,2739.2,0.72996]
[1740078647591,0.5889,2739.5,2739.1,4.48648]
[1740078647791,0.72994,2739.4,2739.2,0.72997]
[1740078648993,0.5889,2739.5,2739.4,0.72992]
[1740078649293,0.5889,2739.5,2739.1,3.7565]
[1740078649890,1.3188,2739.5,2739.3,0.72993]
[1740078650094,0.5384,2739.6,2739.1,3.7565]
[1740078650301,2.43347915,2739.9,2739.1,3.7565]
[1740078650302,3.02147915,2739.9,2739.1,3.7565]
[1740078650592,0.72985,2739.7,2739.5,0.72988]
[1740078651387,0.72988,2739.6,2739.4,0.72991]
[1740078651583,0.72985,2739.7,2739.5,0.72988]
[1740078652094,0.72988,2739.6,2739.4,1.3061]
[1740078652295,0.72988,2739.6,2739.5,0.72989]
[1740078652491,0.72989,2739.5,2739.3,0.72993]
[1740078652697,0.5892,2739.7,2739.3,0.72994]
[1740078653798,0.72992,2739.5,2739.4,0.72992]
[1740078653997,0.5892,2739.7,2739.3,0.72993]
[1740078653998,0.72992,2739.4,2739.3,0.72993]
[1740078655188,0.5892,2739.7,2739.1,3.7565]
[1740078655395,0.72997,2739.2,2739.1,3.9378]
[1740078655610,0.5423,2739.3,2739.1,3.2078]
[1740078655900,0.72997,2739.2,2739.1,3.93779]
[1740078656101,0.72997,2739.2,2739.1,3.9378]
[1740078657895,0.72997,2739.2,2739.1,3.2078]
[1740078658501,0.5423,2739.3,2739.1,3.2078]
[1740078659000,0.72997,2739.2,2739.1,3.93779]
[1740078659890,0.5423,2739.3,2739.1,3.2078]
[1740078660400,1.27227,2739.3,2739.2,0.72997]
[1740078660597,0.72997,2739.2,2739.1,3.2078]
[1740078661102,0.72997,2739.2,2739.1,3.9378]
[1740078662398,0.5423,2739.3,2738.8,3.2078]
[1740078662599,0.73005,2738.9,2738.8,3.93788]
[1740078663694,0.73005,2738.9,2738.8,3.2078]
[1740078663899,0.73008,2738.8,2738.7,0.00547915]
[1740078664098,1.82588,2738.8,2738.7,0.00547915]
[1740078666502,1.82588,2738.8,2738.7,0.73558915]
[1740078666701,1.82588,2738.8,2738.7,0.00547915]
[1740078667206,1.0958,2738.8,2738.7,0.00547915]
[1740078667505,0.73004,2739.0,2738.9,0.73005]
[1740078667704,1.1159,2739.2,2738.8,3.2078]
[1740078667905,3.2078,2739.4,2738.9,2.38022]
[1740078668208,0.5683,2739.8,2738.9,2.38022]
[1740078668209,0.72992,2739.5,2739.1,3.2078]
[1740078668409,1.1159,2739.7,2739.1,3.2078]
[1740078668705,0.72997,2739.3,2739.1,3.93779]
[1740078669103,0.72994,2739.4,2739.2,0.72996]
[1740078669303,2.94053,2739.7,2739.2,0.72996]
[1740078669497,0.72995,2739.3,2739.2,0.72996]
[1740078669897,1.1159,2739.7,2739.1,3.2078]
[1740078670105,1.1159,2739.7,2739.3,0.72994]
[1740078670305,0.72988,2739.6,2739.4,1.31961]
[1740078670499,1.1159,2739.7,2739.4,0.5897]
[1740078670900,0.72989,2739.5,2739.4,0.5897]
[1740078671306,1.1159,2739.7,2739.4,4.52741]
[1740078671501,0.72987,2739.6,2739.4,4.52741]
[1740078671904,0.00547915,2739.9,2739.6,0.72987]
[1740078672207,0.00547915,2739.9,2739.7,3.2078]
[1740078672404,0.00547915,2739.9,2739.8,0.72981]
[1740078673309,0.72961,2740.6,2740.2,0.72969]
[1740078673310,0.72963,2740.5,2740.2,0.72969]
[1740078673605,1.1472,2740.6,2740.3,0.72966]
[1740078673909,0.72965,2740.5,2740.2,0.72969]
[1740078674108,0.72967,2740.4,2740.2,0.72969]
[1740078674403,1.1472,2740.6,2740.1,0.00547915]
[1740078674404,1.15267915,2740.6,2740.1,0.00547915]
[1740078674605,0.72971,2740.2,2740.1,0.00547915]
[1740078674908,2.417,2740.3,2739.7,3.2078]
[1740078675103,0.72981,2739.8,2739.7,3.2078]
[1740078675297,0.72986,2739.7,2739.5,0.72989]
[1740078675501,0.72986,2739.7,2739.4,25.8658]
[1740078675708,0.5699,2740.0,2739.4,25.8658]
[1740078675908,0.72984,2739.7,2739.5,0.72987]
[1740078676310,0.5699,2740.0,2739.5,0.72987]
[1740078676501,0.5699,2740.0,2739.4,27.69604915]
[1740078676803,0.5699,2740.0,2739.8,0.7298]
[1740078677004,1.29967,2740.0,2739.8,0.7298]
[1740078677201,0.5699,2740.0,2739.9,0.72979]
[1740078677402,0.72972,2740.2,2740.0,0.72975]
[1740078677606,0.72972,2740.2,2739.8,0.5787]
[1740078677607,0.56,2740.5,2739.8,1.7226]
[1740078677808,0.56,2740.5,2740.2,0.72968]
[1740078678008,0.72967,2740.4,2740.2,0.72968]
[1740078678207,0.72969,2740.3,2740.1,0.72972]
[1740078678411,0.72968,2740.4,2740.1,0.72971]
[1740078678599,0.72969,2740.3,2740.1,0.72971]
[1740078678801,0.72967,2740.4,2740.2,0.72971]
[1740078679004,1.1287,2740.5,2739.8,5.96611]
[1740078679398,0.72968,2740.4,2740.1,0.72972]
[1740078679605,1.85834,2740.5,2739.8,5.96611]
[1740078679813,1.1287,2740.5,2739.8,4.1416]
[1740078680006,0.72968,2740.4,2739.8,4.1416]
[1740078680210,0.72968,2740.4,2740.2,0.72971]
[1740078680709,1.1287,2740.5,2740.4,0.72965]
[1740078681010,0.00547915,2740.6,2740.5,0.72963]
[1740078681699,0.00547915,2740.6,2740.4,0.567]
[1740078682208,0.00547915,2740.6,2740.5,0.72963]
[1740078694927,0.73507915,2740.6,2740.5,0.72963]
[1740078695122,0.00547915,2740.6,2740.4,0.567]
[1740078695315,0.00547915,2740.6,2740.3,3.2078]
[1740078695521,0.72965,2740.4,2740.3,3.93747]
[1740078696227,0.00547915,2740.6,2740.4,0.72964]
[1740078696228,0.72964,2740.5,2740.4,0.72964]
[1740078696425,0.72964,2740.5,2740.4,0.72963]
[1740078696830,0.00547915,2740.6,2740.3,3.2078]
[1740078697028,0.72965,2740.4,2740.3,3.93747]
[1740078698226,0.72965,2740.5,2740.4,0.72965]
[1740078698824,0.72965,2740.4,2740.3,3.93746]
[1740078699430,0.72965,2740.4,2740.3,3.2078]
[1740078700424,0.72965,2740.4,2740.3,3.93748]
[1740078700727,0.72965,2740.4,2740.3,3.2078]
[1740078701128,1.82423,2740.3,2739.9,3.2078]
[1740078701329,2.97379,2740.2,2739.7,2.398]
[1740078701529,1.1495,2740.2,2739.7,2.398]
[1740078701833,1.1495,2740.2,2739.6,3.2078]
[1740078701834,0.72983,2739.8,2739.6,3.93766]
[1740078702034,0.5723,2739.7,2739.6,3.93766]
[1740078703836,1.30214,2739.7,2739.6,3.2078]
[1740078704129,0.5723,2739.7,2739.4,20.24647915]
[1740078704334,0.72989,2739.5,2739.4,0.00547915]
[1740078705633,1.1476,2739.6,2739.4,0.00547915]
[1740078706131,1.87747,2739.6,2739.4,0.73538915]
[1740078707632,1.32718,2739.6,2739.4,0.73537915]
[1740078708538,1.32718,2739.6,2739.4,0.00547915]
[1740078709038,0.72989,2739.5,2739.4,0.00547915]
[1740078709241,0.5723,2739.7,2739.4,0.00547915]
[1740078709437,0.5723,2739.7,2739.6,0.72987]
[1740078709836,1.30214,2739.7,2739.6,0.72987]
[1740078710836,0.5723,2739.7,2739.6,0.72987]
[1740078711041,1.30215,2739.7,2739.6,0.72987]
[1740078711432,0.5723,2739.7,2739.6,0.72987]
[1740078711829,1.30214,2739.7,2739.6,0.72987]
[1740078712034,0.5723,2739.7,2739.6,0.72987]
[1740078713830,1.30214,2739.7,2739.6,0.72987]
[1740078716236,1.30215,2739.7,2739.6,0.72987]
[1740078717439,1.30214,2739.7,2739.6,0.72987]
[1740078717831,0.5723,2739.7,2739.6,0.72987]
[1740078718033,1.30214,2739.7,2739.6,0.72987]
[1740078718547,0.5723,2739.7,2739.6,0.72987]
[1740078718842,1.30214,2739.7,2739.6,0.72987]
[1740078720245,0.5723,2739.7,2739.6,0.72987]
[1740078720649,1.30214,2739.7,2739.6,0.72987]
[1740078722948,1.30214,2739.7,2739.5,5.6038]
[1740078722949,0.5723,2739.7,2739.5,5.6038]
[1740078723152,1.30216,2739.7,2739.6,0.72987]
[1740078723555,0.5723,2739.7,2739.6,0.72987]
[1740078724350,1.30214,2739.7,2739.6,0.72987]
[1740078724547,0.5723,2739.7,2739.5,5.6038]
[1740078724851,0.5723,2739.7,2739.4,1.16487915]
[1740078724852,0.72987,2739.6,2739.4,0.00547915]
[1740078725050,0.72989,2739.5,2739.4,0.00547915]
[1740078725752,1.31859,2739.5,2739.4,0.00547915]
[1740078730355,0.5723,2739.7,2739.4,0.00547915]
[1740078730561,0.5723,2739.7,2739.6,3.93767]
[1740078730764,1.30214,2739.7,2739.6,3.93767]
[1740078731062,1.30214,2739.7,2739.6,3.2078]
[1740078731463,1.30214,2739.7,2739.6,3.93767]
[1740078734160,0.72989,2739.5,2739.4,2.39847915]
[1740078734761,0.72989,2739.5,2739.4,3.12839915]
[1740078735464,0.72989,2739.5,2739.4,2.39847915]
[1740078736254,0.72989,2739.5,2739.4,0.00547915]
[1740078737760,0.73003,2739.0,2738.9,3.2078]
[1740078739657,0.73008,2738.8,2738.7,0.73557915]
[1740078740768,0.5879,2738.9,2738.7,0.00547915]
[1740078740972,0.73001,2739.1,2739.0,0.73003]
[1740078741272,0.588,2739.1,2739.0,0.73003]
[1740078741464,0.58737915,2739.2,2738.9,3.2078]
[1740078741662,0.00547915,2739.2,2739.1,0.73]
[1740078742465,0.00547915,2739.2,2739.1,41.53]
[1740078745768,0.00547915,2739.2,2738.9,3.93784]
[1740078745769,0.73002,2739.1,2738.9,3.93784]
[1740078745972,0.5408,2739.0,2738.9,6.33185]
[1740078747179,0.00547915,2739.2,2739.1,0.73]
[1740078747373,0.73545915,2739.2,2739.0,0.73001]
[1740078747685,0.73545915,2739.2,2738.9,5.6018]
[1740078747978,0.00547915,2739.2,2739.1,0.73]
[1740078756494,0.73544915,2739.2,2739.1,0.73]
[1740078756792,0.00547915,2739.2,2739.0,1.1607]
[1740078756988,0.00547915,2739.2,2739.1,0.73]
[1740078757493,0.73544915,2739.2,2739.1,0.73]
[1740078757694,0.73545915,2739.2,2738.9,3.7654]
[1740078757993,0.73545915,2739.2,2739.1,0.73]
[1740078758488,0.73544915,2739.2,2739.1,0.73]
[1740078759190,0.00547915,2739.2,2739.1,0.73]
[1740078759488,2.394,2740.1,2739.4,1.82476]
[1740078759691,2.394,2740.1,2738.7,0.00547915]
[1740078759692,0.5859,2740.0,2739.9,0.72978]
[1740078759882,1.31556,2740.4,2740.1,0.72972]
[1740078760690,1.31556,2740.4,2740.2,0.72971]
[1740078761087,0.5859,2740.4,2740.2,3.2078]
[1740078761294,0.00547915,2740.5,2740.4,0.72965]
[1740078762787,0.72943,2741.3,2740.2,6.19077915]
[1740078762992,0.72943,2741.3,2740.8,3.2078]
[1740078763191,0.72943,2741.3,2740.9,0.72951]
[1740078763392,0.72939,2741.4,2740.9,0.72951]
[1740078763692,3.2078,2741.5,2740.9,0.72951]
[1740078763998,0.72943,2741.3,2740.9,0.72952]
[1740078764495,0.72943,2741.3,2740.8,3.93732]
[1740078764698,0.72943,2741.3,2740.8,3.2078]
[1740078764890,0.72943,2741.3,2740.9,0.72952]
[1740078765093,0.72943,2741.3,2740.8,3.2078]
[1740078765399,0.00547915,2741.5,2741.3,0.72941]
[1740078765585,0.00547915,2741.5,2741.1,3.2078]
[1740078765793,0.72943,2741.3,2741.1,3.2078]
[1740078765991,3.21327915,2741.5,2741.1,3.2078]
[1740078766199,0.7294,2741.4,2741.1,3.93726]
[1740078766403,3.21327915,2741.5,2741.1,3.93726]
[1740078766587,0.7294,2741.4,2741.1,3.2078]
[1740078766895,0.72939,2741.4,2741.1,3.2078]
[1740078767300,0.72939,2741.4,2741.1,3.93727]
[1740078767492,0.72943,2741.3,2741.1,3.2078]
[1740078767991,3.21327915,2741.5,2741.1,3.2078]
[1740078768190,0.72944,2741.2,2741.1,3.2078]
[1740078770996,5.03672915,2741.5,2740.8,3.2078]
[1740078771195,0.72945,2741.2,2741.0,0.72948]
[1740078771395,3.21327915,2741.5,2740.8,3.2078]
[1740078771694,0.72945,2741.2,2741.0,0.72948]
[1740078771888,0.00547915,2741.5,2741.1,3.2078]
[1740078772097,0.00547915,2741.5,2741.4,0.72939]
[1740078772397,0.00547915,2741.5,2741.4,3.93719]
[1740078773399,0.72927,2741.9,2741.4,3.2078]
[1740078773606,1.167,2742.1,2741.7,3.2078]
[1740078773792,0.72927,2741.9,2741.7,3.2078]
[1740078774196,0.72927,2741.9,2741.7,3.93711]
[1740078774395,1.167,2742.1,2741.7,3.2078]
[1740078774602,0.72923,2742.0,2741.7,3.2078]
[1740078774802,0.72923,2742.0,2741.8,0.72928]
[1740078775003,0.72926,2741.9,2741.7,3.9371]
[1740078775398,1.17247915,2742.1,2741.7,3.2078]
[1740078775597,0.72928,2741.8,2741.7,3.2078]
[1740078776698,2.99552915,2742.1,2741.5,0.00547915]
[1740078776699,0.72934,2741.6,2741.5,0.00547915]
[1740078779201,1.27874,2741.6,2741.5,0.00547915]
[1740078779501,1.82354,2741.4,2740.8,0.5719]
[1740078779707,0.72951,2741.0,2740.8,1.30143]
[1740078779895,3.2078,2741.4,2740.8,0.5719]
[1740078780101,0.72948,2741.1,2740.9,0.7295]
[1740078780307,0.5494,2741.6,2741.0,3.2078]
[1740078780599,0.72947,2741.1,2741.0,5.60527915]
[1740078781499,0.72947,2741.1,2741.0,6.33477915]
[1740078781700,2.37277,2741.6,2741.0,6.33477915]
[1740078781902,2.37277,2741.6,2741.0,6.33474915]
[1740078781903,0.72945,2741.2,2741.0,6.33474915]
[1740078782303,0.72946,2741.2,2741.1,0.72947]
[1740078782706,0.72946,2741.2,2741.0,6.33475915]
[1740078782894,0.5878,2741.5,2741.1,0.72945]
[1740078782895,0.72942,2741.3,2741.1,0.72945]
[1740078783099,0.72944,2741.2,2741.0,6.33475915]
[1740078783301,0.5878,2741.5,2741.0,6.33474915]
[1740078783502,0.72945,2741.2,2741.0,6.33474915]
[1740078783702,0.5878,2741.5,2741.0,5.60527915]
[1740078784101,0.72942,2741.3,2741.1,0.72945]
[1740078784307,0.72942,2741.3,2741.1,0.72946]
[1740078784502,0.7294,2741.4,2741.2,0.72942]
[1740078784806,0.7294,2741.4,2741.2,0.72943]
[1740078785002,0.5878,2741.5,2741.0,6.16427915]
[1740078785003,0.5878,2741.5,2741.3,40.8]
[1740078785402,3.20936546,2741.8,2741.3,40.8]
[1740078785605,0.73086546,2741.8,2741.6,0.72933]
[1740078786111,0.72934,2741.6,2741.5,3.2078]
[1740078787207,0.72942,2741.3,2741.2,5.5998]
[1740078788311,0.72942,2741.3,2741.2,3.2078]
[1740078788905,0.72947,2741.1,2741.0,0.00547915]
[1740078790504,0.5916,2741.4,2741.0,0.00547915]
[1740078790708,0.72947,2741.1,2741.0,0.73495915]
[1740078791015,0.72947,2741.1,2741.0,0.00547915]
[1740078799412,0.5679,2741.5,2741.2,0.72943]
[1740078799610,0.72943,2741.3,2741.1,1.89046]
[1740078799912,0.72944,2741.3,2741.1,1.161]
[1740078800107,0.5679,2741.5,2741.1,1.161]
[1740078800313,2.39132,2741.5,2741.1,1.89046]
[1740078800508,0.5679,2741.5,2741.1,0.72945]
[1740078800816,0.72946,2741.2,2741.0,0.73494915]
[1740078801113,0.5625,2741.1,2741.0,0.73494915]
[1740078801412,0.72943,2741.3,2741.0,0.00547915]
[1740078801612,1.1283,2741.5,2741.2,0.72942]
[1740078802010,0.72942,2741.3,2741.2,0.72942]
[1740078802212,0.72942,2741.3,2741.0,0.00547915]
[1740078802412,0.72942,2741.3,2741.2,0.72944]
[1740078802612,1.1283,2741.5,2741.0,0.00547915]
[1740078802812,0.72944,2741.3,2741.1,0.72945]
[1740078803616,1.1283,2741.5,2741.1,0.72945]
[1740078803819,0.72947,2741.1,2741.0,0.00547915]
[1740078804623,0.72947,2741.1,2741.0,0.73497915]
[1740078805618,0.72947,2741.1,2741.0,0.00547915]
[1740078806117,0.72947,2741.1,2741.0,0.73497915]
[1740078806310,0.72947,2741.1,2741.0,0.00547915]
[1740078809813,0.72947,2741.2,2741.1,0.72946]
[1740078811022,0.72947,2741.2,2741.1,0.72947]
[1740078811320,2.95175,2741.5,2741.0,0.00547915]
[1740078811521,0.72947,2741.1,2741.0,0.73494915]
[1740078811820,0.72947,2741.1,2741.0,0.00547915]
[1740078816710,0.72947,2741.1,2741.0,0.73497915]
[1740078817120,0.72947,2741.1,2741.0,0.00547915]
[1740078832333,2.3877,2741.4,2741.0,0.00547915]
[1740078832538,2.95174,2741.5,2741.0,0.00547915]
[1740078832741,0.72946,2741.2,2741.1,0.72944]
[1740078833039,0.72947,2741.1,2741.0,0.73494915]
[1740078833232,0.72947,2741.1,2741.0,0.00547915]
[1740078833434,0.72947,2741.1,2741.0,0.73497915]
[1740078833739,0.72947,2741.1,2741.0,0.00547915]
[1740078835342,0.72947,2741.1,2741.0,0.73497915]
[1740078835942,0.72947,2741.1,2741.0,0.00547915]
[1740078838335,0.72947,2741.1,2741.0,0.73497915]
[1740078838543,0.72947,2741.1,2741.0,0.00547915]
[1740078841447,1.1283,2741.5,2741.0,0.00547915]
[1740078841745,1.1283,2741.5,2741.0,0.57607915]
[1740078841937,0.72944,2741.3,2741.2,0.72944]
[1740078842133,1.1283,2741.5,2741.4,0.72939]
[1740078842339,1.1283,2741.5,2741.1,3.7741]
[1740078842744,0.5604,2741.5,2741.1,3.7741]
[1740078843144,0.5604,2741.5,2741.4,3.2078]
[1740078843341,0.72934,2741.6,2741.4,3.93719]
[1740078843541,1.13676546,2741.8,2741.5,0.5938]
[1740078843741,1.13676546,2741.8,2741.5,1.88945]
[1740078843742,0.72933,2741.7,2741.5,1.88945]
[1740078843949,1.13676546,2741.8,2741.5,1.88945]
[1740078844247,0.72933,2741.7,2741.5,1.88945]
[1740078844748,1.13676546,2741.8,2741.5,1.1601]
[1740078844941,1.13676546,2741.8,2741.5,1.88945]
[1740078845950,0.72932,2741.7,2741.5,1.88944]
[1740078846345,0.72932,2741.7,2741.5,1.1601]
[1740078846546,0.72932,2741.7,2741.5,1.88945]
[1740078846742,1.13676546,2741.8,2741.5,1.1601]
[1740078847052,0.72933,2741.7,2741.6,0.72934]
[1740078847749,0.72933,2741.7,2741.5,1.1601]
[1740078847951,0.72933,2741.7,2741.6,0.72934]
[1740078848151,0.72933,2741.7,2741.5,1.1601]
[1740078848451,0.72933,2741.7,2741.6,0.72934]
[1740078849047,1.13676546,2741.8,2741.7,0.72931]
[1740078849250,0.00156546,2741.8,2741.7,3.93711]
[1740078850447,0.00156546,2741.8,2741.7,6.32811]
[1740078850645,0.73469915,2742.1,2742.0,0.72923]
[1740078851346,0.00547915,2742.1,2742.0,0.72923]
[1740078851845,0.73467915,2742.1,2742.0,0.72923]
[1740078852046,0.00547915,2742.1,2742.0,0.72923]
[1740078853050,0.73467915,2742.1,2742.0,0.72923]
[1740078853553,0.00547915,2742.1,2742.0,0.72923]
[1740078856752,0.00547915,2742.1,2742.0,1.31143]
[1740078859660,0.73467915,2742.1,2742.0,1.31143]
[1740078860451,0.00547915,2742.1,2742.0,1.31143]
[1740078861261,0.73467915,2742.1,2742.0,1.31143]
[1740078863358,0.73467915,2742.1,2742.0,0.5822]
[1740078863662,0.73467915,2742.1,2742.0,1.31143]
[1740078864361,1.28557915,2742.1,2742.0,1.31143]
[1740078864660,1.28557915,2742.1,2742.0,0.5822]
[1740078864860,1.28557915,2742.1,2742.0,1.31143]
[1740078868561,1.28557915,2742.1,2742.0,0.5822]
[1740078868964,1.28557915,2742.1,2742.0,1.31143]
[1740078869155,1.28557915,2742.1,2742.0,0.5822]
[1740078873263,1.28557915,2742.1,2742.0,3.79]
[1740078873568,1.28557915,2742.1,2742.0,4.51923]
[1740078873767,0.55637915,2742.1,2742.0,4.51923]
[1740078874569,1.28557915,2742.1,2742.0,4.51923]
[1740078875959,0.55637915,2742.1,2742.0,4.51923]
[1740078876362,1.28557915,2742.1,2742.0,4.51923]
[1740078877468,0.55637915,2742.1,2742.0,4.51923]
[1740078879070,1.28557915,2742.1,2742.0,4.51923]
[1740078879470,1.28557915,2742.1,2742.0,3.79]
[1740078879671,1.28557915,2742.1,2742.0,4.51923]
[1740078880073,0.55637915,2742.1,2742.0,4.51923]
[1740078880272,1.28557915,2742.1,2742.0,4.51923]
[1740078881379,0.55637915,2742.1,2742.0,4.51923]
[1740078882071,0.00547915,2742.1,2742.0,4.51923]
[1740078884577,0.73467915,2742.1,2742.0,4.51923]
[1740078885483,0.00547915,2742.1,2742.0,4.51923]
[1740078885779,0.73467915,2742.1,2742.0,4.51923]
[1740078885980,0.00547915,2742.1,2742.0,4.51923]
[1740078888579,0.73467915,2742.1,2742.0,4.51923]
[1740078888884,0.00547915,2742.1,2742.0,4.51923]
[1740078891780,0.00547915,2742.1,2742.0,5.10143]
[1740078894883,0.00547915,2742.1,2742.0,4.51923]
[1740078895083,0.00547915,2742.1,2742.0,3.79]
[1740078895283,0.73467915,2742.1,2742.0,4.51923]
[1740078895479,0.73467915,2742.1,2742.0,3.79]
[1740078895783,0.73467915,2742.1,2742.0,3.2078]
[1740078896084,0.73467915,2742.1,2742.0,3.93703]
[1740078896577,1.30107915,2742.1,2742.0,3.93703]
[1740078898785,0.57187915,2742.1,2742.0,3.93703]
[1740078899086,1.30107915,2742.1,2742.0,3.2078]
[1740078899586,0.57187915,2742.1,2742.0,3.2078]
[1740078899786,0.57187915,2742.1,2742.0,3.93703]
[1740078900283,0.00547915,2742.1,2742.0,3.93703]
[1740078901688,0.00547915,2742.1,2742.0,6.32603]
[1740078901888,0.55767915,2742.1,2742.0,6.32603]
[1740078902583,0.00547915,2742.1,2742.0,6.32603]
[1740078909297,0.5522,2742.6,2742.5,0.7291]
[1740078909494,0.5522,2742.6,2742.5,6.3249]
[1740078910197,0.5522,2742.6,2742.5,6.9166]
[1740078913703,0.73449915,2742.8,2742.7,0.72904]
[1740078913704,0.00547915,2742.8,2742.7,0.72904]
[1740078914196,0.54867915,2742.8,2742.7,0.72904]
[1740078914902,0.54867915,2742.8,2742.7,41.52904]
[1740078915101,0.54867915,2742.8,2742.7,0.72904]
[1740078915294,0.00547915,2742.8,2742.7,0.72904]
[1740078915694,0.00547915,2742.8,2742.7,41.52904]
[1740078920795,0.00547915,2742.8,2742.7,41.82496357]
[1740078921200,1.092,2743.3,2742.7,41.09592357]
[1740078921396,1.092,2743.3,2743.2,0.72891]
[1740078921603,1.82088,2743.3,2743.2,2.388]
[1740078923405,0.72899,2742.9,2742.8,3.2078]
[1740078923812,0.72902,2742.8,2742.7,2.388]
[1740078924108,1.84092,2742.8,2742.7,2.388]
[1740078926800,1.84092,2742.8,2742.7,3.11704]
[1740078927003,1.84092,2742.8,2742.7,2.388]
[1740078930812,1.84092,2742.8,2742.7,6.32484]
[1740078930813,1.1119,2742.8,2742.7,6.32484]
[1740078931019,1.84092,2742.8,2742.7,5.5958]
[1740078932519,1.1119,2742.8,2742.7,5.5958]
[1740078932721,1.84092,2742.8,2742.7,6.32484]
[1740078933012,1.84092,2742.8,2742.7,5.5958]
[1740078933718,1.84092,2742.8,2742.7,6.32484]
[1740078933915,1.1119,2742.8,2742.7,6.32484]
[1740078934219,0.72895,2743.1,2743.0,0.72895]
[1740078934419,0.72899,2742.9,2742.8,0.574]
[1740078934613,0.72902,2742.8,2742.7,6.32483]
[1740078934813,1.82229,2743.2,2742.7,6.32483]
[1740078935013,1.82229,2743.2,2742.7,5.5958]
[1740078935215,0.72902,2742.9,2742.7,6.32482]
[1740078935520,1.31492,2742.8,2742.7,5.5958]
[1740078937725,3.2078,2744.4,2742.7,7.14844879]
[1740078937921,0.72861,2744.4,2744.1,3.93645]
[1740078938228,3.2078,2745.3,2744.3,40.8]
[1740078938424,3.91182445,2745.9,2745.2,3.2078]
[1740078938625,0.70402445,2745.9,2745.2,3.2078]
[1740078938920,2.387,2746.3,2745.8,3.2078]
[1740078939116,3.2078,2746.6,2745.8,3.2078]
[1740078939427,3.2078,2746.4,2745.8,0.00546896]
[1740078939628,3.2078,2746.4,2745.9,3.2078]
[1740078939823,3.2078,2746.4,2746.0,0.72815]
[1740078940028,3.2078,2746.4,2745.9,3.2078]
[1740078940924,3.2078,2746.4,2746.0,0.72817]
[1740078941319,3.2078,2746.4,2745.9,3.2078]
[1740078941529,3.2078,2746.4,2746.0,0.72815]
[1740078941822,3.93586,2746.4,2746.0,0.72815]
[1740078942021,3.93586,2746.4,2745.9,3.93597]
[1740078942228,3.2078,2746.4,2745.9,3.2078]
[1740078942530,0.72816,2746.1,2745.8,0.00546896]
[1740078942827,3.2078,2746.4,2745.8,0.00546896]
[1740078943216,0.72814,2746.1,2745.8,0.00546896]
[1740078943722,5.5938,2746.4,2745.9,40.8]
[1740078944028,5.5938,2746.4,2745.9,44.0078]
[1740078944528,0.72813,2746.2,2745.9,44.0078]
[1740078944728,0.72813,2746.2,2745.9,44.73599]
[1740078944921,5.5938,2746.4,2745.9,44.0078]
[1740078945123,0.7281,2746.3,2745.9,44.73598]
[1740078945422,5.5938,2746.4,2745.9,44.0078]
[1740078945622,0.72815,2746.1,2745.9,44.0078]
[1740078945822,0.72815,2746.1,2745.9,3.2078]
[1740078946025,5.5938,2746.4,2745.9,3.2078]
[1740078946229,5.5938,2746.4,2745.9,3.93598]
[1740078946424,0.72817,2746.0,2745.9,3.2078]
[1740078946624,5.5938,2746.4,2745.9,3.2078]